Cogmind - Beta 16 @@@ ROGUE MODE // 2025.12.14 @ 21:13:57 Player: lvl5hm Result: Destroyed by Y-45 Defender with Beam Rifle Performance ------------- Evolutions (0) 0 Regions Visited (2) 400 Robots Destroyed (27) 135 Value Destroyed (641) 641 Prototype IDs (0) 0 Alien Tech Used (0) 0 Bonus (0) 0 TOTAL SCORE: 1176 Bonus ------- None Cogmind --------- Core Integrity 0/250 Matter 273/300 Energy 148/200 System Corruption 0% Temperature Cool (9) Movement Core (300) Ox5 Location -10/Subcaves Parts ------- > --- POWER (1) -------- Subdweller Power Source > --- PROPULSION (2) --- (None) > --- UTILITY (2) ------ Seismic Detector > --- WEAPON (2) ------- Subdweller Laser Subdweller Beam Cannon > --- INVENTORY (5) ---- Gun Armor Subdweller Shrapnel Launcher Multitool Mace Peak State ------------ > --- POWER ------------ Subdweller Power Source > --- PROPULSION ------- Light Treads Light Treads > --- UTILITY ---------- Large Storage Unit Hardened Light Armor Plating > --- WEAPON ----------- Subdweller Beam Cannon Subdweller Machine Gun > --- INVENTORY -------- Subdweller Monowheel Seismic Detector Seismic Detector Hardened Light Armor Plating Hardened Light Armor Plating Hardened Light Armor Plating Gun Armor Subdweller Laser Subdweller Machine Gun Grenade Launcher Subdweller Shrapnel Launcher Plasma Cutter Mace [Rating: 14] Favorites ----------- Power Ion Engine Engine Ion Engine Propulsion Light Treads Treads Light Treads Wheel Wheel Utility Seismic Detector Device Seismic Detector Storage Large Storage Unit Protection Hardened Light Armor Plating Weapon Assault Rifle Energy Gun Subdweller Laser Energy Cannon Subdweller Beam Cannon Ballistic Gun Assault Rifle Build | -11 -10 -10 ------- Run | Yrd Mat Sub Slots Evolved . | . . . Power . | . . . Propulsion . | . . . Utility . | . . . Weapon . | . . . Parts Attached 23 | 8 3 12 Power 3 | 1 . 2 Engine 3 | 1 . 2 Core . | . . . Reactor . | . . . Propulsion 3 | 2 . 1 Treads 2 | 2 . . Leg . | . . . Wheel 1 | . . 1 Hover . | . . . Flight . | . . . Utility 7 | 2 2 3 Device 2 | 1 . 1 Storage 2 | 1 1 . Processor . | . . . Hackware . | . . . Protection 3 | . 1 2 Artifact . | . . . Weapon 10 | 3 1 6 Energy Gun 2 | . . 2 Energy Cannon 2 | . . 2 Ballistic Gun 6 | 3 1 2 Ballistic Cannon . | . . . Launcher . | . . . Special Weapon . | . . . Impact Weapon . | . . . Slashing Weapon . | . . . Piercing Weapon . | . . . Special Melee Weapon . | . . . Unidentified Prototypes . | . . . Parts Lost 8 | . . 8 Power . | . . . Propulsion 3 | . . 3 Utility 1 | . . 1 Weapon 4 | . . 4 Highest Loss Streak 4 | . . 4 To Critical Strikes . | . . . Average Backups 8 | 1 7 9 Power . | . . . Propulsion . | . . . Utility 4 | . 5 4 Weapon 2 | . 2 3 Tool/Special . | . . . Unused Backups 12 | . 1 11 Power . | . . . Propulsion 3 | . . 3 Utility 4 | . 1 3 Weapon 3 | . . 3 Tool/Special 2 | . . 2 Average Slot Usage (%) 93 | . 99 89 Engine 14 | . 14 14 Treads 24 | . 27 21 Wheel 1 | . . 2 Device 8 | . 9 8 Storage 12 | . 14 10 Protection 5 | . 4 5 Energy Gun 3 | . . 7 Energy Cannon 3 | . . 6 Ballistic Gun 19 | . 28 12 Peak Build Rating 14 | 7 9 14 Average Rating 9 | 5 8 11 On Entrance 5 | . 7 9 Avg Prop Armor Cover (%) 8 | . . 8 Naked Turns . | . . . Heaviest Build 42 | 15 34 42 Greatest Support 40 | 40 40 40 Greatest Overweight (x) 5 | 1 . 5 Average Overweight (x) . | . . 1 Largest Inventory Capacity 15 | 8 15 15 Average Capacity 11 | 7 10 12 Most Carried 15 | 2 9 15 Average Carried 8 | 1 7 10 Final Capacity 15 | 8 15 5 Final Carried 9 | 2 9 4 Class Distribution -------------------- 89% | Mutant 6% | Subdweller-Mutant 4% | Scavenger-Mutant Dominant Class ---------------- Mutant | -10/Materials Mutant | -10/Subcaves Resources | -11 -10 -10 ----------- Run | Yrd Mat Sub Matter Collected 912 | 346 257 309 Remotely . | . . . Salvage Created 828 | 162 239 427 Parts 70 | 6 28 36 Haulers Intercepted . | . . . Recyclers Shooed . | . . . Parts Field Recycled . | . . . Retrieved Matter . | . . . Parts Self-Destructed 1 | . . 1 Prevented . | . . . Parts Restored . | . . . Kills | -11 -10 -10 ------- Run | Yrd Mat Sub Combat Hostiles Destroyed 19 | . 8 11 Guns 17 | . 8 9 Cannons 2 | . . 2 Classes Destroyed 8 | 3 4 1 Worker 1 | 1 . . Tunneler 4 | 3 1 . Recycler 1 | 1 . . Watcher 2 | . 2 . Swarmer 6 | . 5 1 Grunt 1 | . 1 . Artisan 1 | . . 1 Subdweller 12 | . 2 10 Best Kill Streak 6 | 3 6 3 Combat Bots Only 5 | . 5 3 Max Kills in Single Turn 2 | 1 2 1 Gunslinging . | . . . Exploded . | . . . Melee . | . . . Uniques/NPCs Destroyed . | . . . Combat | -11 -10 -10 -------- Run | Yrd Mat Sub Hostile Shots Fired 113 | . 45 68 Missed 30 | . 15 15 Hits 83 | . 30 53 Projectile 83 | . 30 53 AOE 3 | . . 3 Critical Strikes 2 | . . 2 Damage Taken 1626 | . 333 1293 Core 263 | . 81 182 Absorbed by Shields . | . . . Regen/Repaired (Parts) 101 | . 101 . Core Remaining (%) 100 | 100 . . Volleys Fired 112 | 17 26 69 Largest 2 | 2 2 2 Hottest 100 | 40 40 100 Shots Fired 186 | 34 52 100 Gun 157 | 34 52 71 Cannon 29 | . . 29 Launcher . | . . . Special . | . . . Kinetic 128 | 34 52 42 Thermal 58 | . . 58 Explosive . | . . . Electromagnetic . | . . . Robot Hit Streak 15 | 3 15 15 Robot Miss Streak 4 | 4 3 2 Penetration Max . | . . . Secondary Targets 3 | . 2 1 Max Gunslinging Chain 1 | . 1 1 Shots Hit Robots 131 | 18 33 80 Core Hits 39 | 6 14 19 Critical Kills . | . . . Critical Parts Destroyed 1 | . . 1 Critical Strikes 1 | . . 1 Destroy 1 | . . 1 Melee Attacks . | . . . Impact . | . . . Slashing . | . . . Piercing . | . . . Sneak Attacks . | . . . Combat Hostiles . | . . . Follow-up Attacks . | . . . Damage Inflicted 2226 | 200 440 1586 Guns 1644 | 200 440 1004 Cannons 582 | . . 582 Explosions . | . . . Melee . | . . . Ramming . | . . . Kinetic 1126 | 200 440 486 Thermal 1100 | . . 1100 Explosive . | . . . Electromagnetic . | . . . Impact . | . . . Slashing . | . . . Piercing . | . . . Highest Corruption . | . . . Average Corruption . | . . . Corruption Purged . | . . . Corruption Blocked . | . . . Overload Shots . | . . . Overflow Damage . | . . . Projectiles . | . . . Explosions . | . . . Melee . | . . . Knockbacks . | . . . Impact . | . . . Kinetic . | . . . Secondary . | . . . Self-Inflicted Damage . | . . . Shots . | . . . Rammed . | . . . Targets Rammed . | . . . Kicked . | . . . Crushed . | . . . Highest Temperature 274 | . 6 274 Average Temperature 78 | . 3 94 Received Heat Transfer 556 | . 48 508 Siege Activations . | . . . Martial Activations . | . . . Shielding Activations . | . . . Robots Disrupted . | . . . Combat Hostiles . | . . . Robots Corrupted . | . . . Combat Hostiles . | . . . Parts Fried . | . . . Impact Corruptions . | . . . Robots Melted . | . . . Combat Hostiles . | . . . Parts Melted 2 | . 1 1 Heat Transferred 1402 | . . 1402 Parts Sabotaged . | . . . Parts Stolen . | . . . Parts Stripped . | . . . Power Chain Reactions . | . . . Alert | -11 -10 -10 ------- Run | Yrd Mat Sub Maximum Alert Level . | . . . Low Security (%) 100 | 100 100 . Level 1 . | . . . Level 2 . | . . . Level 3 . | . . . Level 4 . | . . . Level 5 . | . . . High Security . | . . . Max Security . | . . . Peak Influence 125 | 10 125 . Initial . | . . . Average 19 | 1 22 . Influence Increases 232 | 25 187 20 Destroy 0b10 Robot/C 140 | . 120 20 Destroy 0b10 Robot/NC 40 | 25 15 . Destroy Leader 34 | . 34 . Successful Hack 18 | . 18 . Influence Decreases 218 | 25 187 6 Time Decay 218 | 25 187 6 Squads Dispatched 1 | . 1 . Investigation 1 | . 1 . Extermination . | . . . Reinforcement . | . . . Assault . | . . . Garrison . | . . . Intercept . | . . . Searches Triggered . | . . . Construction Impeded . | . . . Haulers Reinforced . | . . . Active Scanning Responses . | . . . Cargo Convoy Interrupts . | . . . Stealth | -11 -10 -10 --------- Run | Yrd Mat Sub Distress Signals . | . . . Communications Jammed . | . . . Distress Signals . | . . . Times Spotted 28 | . 15 13 Peak Tracking Total 5 | . 5 3 Tactical Retreats 1 | . 1 . Traps | -11 -10 -10 ------- Run | Yrd Mat Sub Traps Triggered 1 | . 1 . Indirectly . | . . . Trap Hack Attempts . | . . . Triggered . | . . . Disarmed . | . . . Reprogrammed . | . . . Reused . | . . . Traps Extracted . | . . . Installed . | . . . Triggered . | . . . Machines | -11 -10 -10 ---------- Run | Yrd Mat Sub Machines Disabled . | . . . Max in Single Turn . | . . . Machines Repaired . | . . . Machines Dismantled . | . . . Machines Sabotaged . | . . . Overloaded Fab Kills . | . . . Hacking | -11 -10 -10 --------- Run | Yrd Mat Sub Machines Accessed 4 | . 4 . Terminals 3 | . 3 . Fabricators . | . . . Repair Stations 1 | . 1 . Recycling Units . | . . . Scanalyzers . | . . . Garrison Access . | . . . Total Hacks 14 | . 14 . Successful 8 | . 8 . Failed 6 | . 6 . Catastrophic . | . . . Database Lockouts . | . . . Manual 9 | . 9 . Terminals 9 | . 9 . Fabricators . | . . . Repair Stations 5 | . 5 . Recycling Units . | . . . Scanalyzers . | . . . Garrison Access . | . . . Terminal Hacks 3 | . 3 . Part Schematic 2 | . 2 . Robot Analysis 1 | . 1 . Fabricator Hacks . | . . . Repair Station Hacks 4 | . 4 . Scan Component 2 | . 2 . Repair 2 | . 2 . Recycling Unit Hacks . | . . . Scanalyzer . | . . . Garrison Access Hacks . | . . . Unauthorized Hacks 1 | . 1 . Terminals 1 | . 1 . Botnet 1 | . 1 . Fabricators . | . . . Repair Stations . | . . . Recycling Units . | . . . Scanalyzers . | . . . Garrison Access . | . . . Data Cores Recovered . | . . . Used . | . . . Hacking Detections 4 | . 4 . Full Trace Events . | . . . Feedback Events . | . . . Feedback Blocked . | . . . Robot Schematics Acquired . | . . . Robots Built . | . . . Authchips . | . . . Time . | . . . Total Robot Build Rating . | . . . Part Schematics Acquired 2 | . 2 . Parts Built . | . . . Authchips . | . . . Time . | . . . Total Part Build Rating . | . . . Part Studies Acquired . | . . . Parts Repaired 2 | . 2 . Time 52 | . 52 . Parts Recycled . | . . . Recycled Matter . | . . . Retrieved Matter . | . . . Retrieved Components . | . . . Parts Scanalyzed . | . . . Part Schematics Acquired . | . . . Parts Damaged . | . . . Bothacking | -11 -10 -10 ------------ Run | Yrd Mat Sub Used RIF Installer . | . . . Robots Hacked . | . . . Non-combat . | . . . Combat . | . . . Robot Hacks Applied . | . . . Relay Couplers Released . | . . . Fabnet Peak Effective % . | . . . Robots Rewired . | . . . Allies Hacked . | . . . Hacks Repelled . | . . . Allies | -11 -10 -10 -------- Run | Yrd Mat Sub Total Allies . | . . . Largest Group . | . . . Highest-Rated Group . | . . . Highest-Rated Ally . | . . . Total Orders . | . . . Ally Attacks . | . . . Total Damage . | . . . Kills . | . . . Allies Corrupted . | . . . Allies Melted . | . . . Intel | -11 -10 -10 ------- Run | Yrd Mat Sub Active Infowar (turns) 1337 | 46 652 639 Seismic 1337 | 46 652 639 Robot Analysis Total 1 | . 1 . Derelict Logs Recovered 1 | . . 1 Drone Launches . | . . . Drone Recoveries . | . . . Exploration | -11 -10 -10 ------------- Run | Yrd Mat Sub Turns Passed 2277 | 171 993 1113 Spaces Moved 1072 | 76 505 491 Core 51 | 13 . 38 Treads 910 | 63 505 342 Legs . | . . . Wheels 111 | . . 111 Hover . | . . . Flight . | . . . Fastest Speed 50 | 50 160 95 Average Speed 161 | 142 160 166 Slowest Speed 300 | 160 160 300 Overloaded Moves . | . . . Propulsion Burnouts . | . . . Robots Hopped . | . . . Potential Cave-ins . | . . . Cave-ins Triggered . | . . . Exploration Rate (%) 35 | 5 66 36 Regions Visited 2 Branch Regions 1 Pre-discovered Areas 1 | . . 1 Known Exits Taken . | . . . Unknown Exits Taken 2 | 1 1 . Scrap Searched . | . . . Spaces Dug . | . . . Terrain Destroyed 2 | . . 2 Melee . | . . . Projectile 2 | . . 2 AOE . | . . . Terrain Rammed . | . . . Walls Destroyed . | . . . Machines Disabled . | . . . Actions | -11 -10 -10 --------- Run | Yrd Mat Sub Total 1418 | 101 638 679 Wait 159 | . 88 71 Move 1070 | 75 504 491 Hop . | . . . Pick Up 20 | 1 9 10 Fast Attach 12 | 7 2 3 Attach 5 | . . 5 Detach 1 | . . 1 Swap 25 | 1 5 19 Drop 13 | . 4 9 Fire 112 | 17 26 69 Melee . | . . . Ram . | . . . Kick . | . . . Crush . | . . . Escape Stasis . | . . . Rewire . | . . . Trap . | . . . Miscellaneous 1 | . . 1 Route ------- -11/Scrapyard -10/Materials (discovered 3 exits: [*Mat] / [*Min] / [*Sub]) -10/Subcaves (discovered 1 exit: [*Mat]) History --------- Turn | Location | Event 9 | -11/Scrapyard | Discovered new exit (range 15) 172 | -11/Scrapyard | Entered Materials 305 | -10/Materials | Build established: Mutant 422 | -10/Materials | Discovered new exit (range 6) 547 | -10/Materials | Discovered new exit (range 7) 555 | -10/Materials | Discovered new exit (range 12) 772 | -10/Materials | Derelicts attacked the area 1032 | -10/Materials | Repaired Lgt. Treads 1060 | -10/Materials | Repaired Lgt. Treads 1165 | -10/Materials | Entered Subcaves 1166 | -10/Subcaves | Approached by a straggling Scientist 1300 | -10/Subcaves | A swath of the cavern ceiling suddenly collapsed 1372 | -10/Subcaves | A Subdweller sparked back to life 1372 | -10/Subcaves | A Subdweller sparked back to life 1413 | -10/Subcaves | Found Prototype Protection 1568 | -10/Subcaves | Core integrity fell below 50% 1655 | -10/Subcaves | Discovered new exit (range 11) 1737 | -10/Subcaves | Learned Materials security intel 2003 | -10/Subcaves | Learned location of Zion (-7) 2003 | -10/Subcaves | Met a Zionite searching for "candidates" 2110 | -10/Subcaves | Ambushed by Subdwellers from Twisted Machinery 2137 | -10/Subcaves | Core integrity fell below 20% 2177 | -10/Subcaves | Lost 4 parts (2n1u1w) 2278 | -10/Subcaves | Destroyed by Y-45 Defender with Beam Rifle Last Messages --------------- 02119_ AN-B6T(O) collects matter. 02119_ Wheel destroyed. 02131_ QP-E4H(R) destroyed. 02140_ Scrap Shield destroyed. 02140_ Critical hit (Meltdown: +280). 02144_ Sub. Machine Gun destroyed. 02146_ Lgt. Treads destroyed. 02148_ DG-MQY(R) suffers critical hit (Destroy). 02148_ Destroyed Sub. Beam Cannon. 02149_ AN-B6T(O) collects matter. 02149_ DG-MQY(R) affixes Scrap Shield Fragment to Scrap Shield. 02156_ DG-MQY(R) destroyed. 02159_ AN-B6T(O) collects matter. 02161_ Dropped Sub. Power Source. 02171_ Acquired Sub. Beam Cannon. 02191_ Acquired 10 matter. 02260_ S-10 Pest destroyed. 02278_ Lgt. Ion Engine fries itself beyond repair. Map ----- +----------------------------------------------------+ | | | | | | | | | ?????????????????????????????????????????????????? | | ?????????????????????????????????????????????????? | | ?????????????????????????????????????????????????? | | ?????????????????????????????????????????????????? | | ?????????????????????????????????????????????????? | | ?????????????????????????????????????????????????? | | ?????????????????????????????????????????????????? | | ?????????????????????????????????????????????????? | | ?????????????????????????????????????????????????? | | ?????????????????????????????????????????????????? | | ?????????????????????????????????????????????????? | | ?????????????????????????????????????????????????? | | ?????????????????????????????????????????????????? | | ?????????????????????????????????????????????????? | | ?????????????????????????????????????????????????? | | ???????????????????????????????????????#####?????? | | ???????????????????????????????????????# ##????? | | ???????????????????????????????????????# #????? | | ???????????????????????#########?????### "##???? | | ?????????????????????### ## ####### ""#???? | | ?????????????????????# """" #???? | | ?????????????????????## @ " " ####? | | ??????????????????????# ## ### # #" " ## | | ??????????????????????#Y#### ############" | | ??????????????????????# #??# #?????????# " | | ????????????????????? #? #????????# "" | | ??????????????????? % #???????### ### | | ????????????????? "#???????# ## | | ????????????????# ## ## " #??###### ## | | ????????????????# ###### " ### "# # | | ????????????????## #????# | | ????????????????? ####????# * # | | ???????????????? ????????? ! | | ??????????????? ?????????? | | | ?????????????? ???????????? | | ????????????? ????????????? | | ??????????????#????????????? * & | | ?????????????????????????????## | | ??????????????????????????????### | | ????????????????????????????????## ## ### | | ?????????????????????????????????### ?## #?? | | ???????????????????????????????????# #?## ##?? | | ???????????????????????????????#### # # #??? | | ???????????????????????????????# ^ ^ ##### | | ???????????????????????????????# # # | | ???????????????????????????????## ^ # | +----------------------------------------------------+ Best States ------------- Heat Dissipation 25 Energy Generation 15 Energy Capacity 250 Matter Stores 300 Matter Capacity 300 Sight Range 16 Terrain Scan Density 10 Armor Coverage 800 Evasion (%) 50 Recoil Reduction 2 Item Schematics ----------------- Seismic Detector | -10/Materials | Hacked Signal Interpreter | -10/Materials | Hacked Robot Schematics ------------------ None Fabricated ------------ Nothing Repaired ---------- Lgt. Treads | 63% | -10/Materials Lgt. Treads | 64% | -10/Materials Studied --------- None Alien Tech Used ----------------- None Achievements -------------- None Challenges ------------ None Game ------ Seed GravitonDerelictBoomstick Manual? 0 Play Time 00:15:44 Cumulative 289.9 hours Start 2025.12.14 @ 20:59:54 End 2025.12.14 @ 21:13:57 Sessions 1 Manual Loads 0 Difficulty Rogue Special Mode None Game No. 210 Rogue 210 Adventurer 0 Explorer 0 Win Type - Total 13 Types 7/1/2/1/0/0/0/1/0/1 Lore% 72 Gallery% 76 Achievement% 70 Wizard Run 0 Options --------- Layout 2 ASCII 0 Keyboard 1 Movement Arrows Keybinds 0 Fullscreen 1 Font 32/Tamsyn Map View 50x44 Zoom Use 0% Tactical HUD 1 Map Filters NONE Filters NONE Steam 1 RUN: 6f524703-5d4c-4cfd-bcef-06742ee69395